bitfinex/quotes_ETHUSD_20250827
["timestamp","ask_amount","ask_price","bid_price","bid_amount"]
[1756292364239,16.34043723,4591.1,4591.0,0.7568]
[1756292365100,12.68943723,4591.1,4591.0,0.7568]
[1756292366237,12.68943723,4591.1,4591.0,0.3027]
[1756292368030,13.00523723,4591.1,4591.0,0.001]
[1756292368231,14.43510376,4591.1,4591.0,0.001]
[1756292371015,14.00610376,4591.1,4591.0,0.001]
[1756292371216,14.43510376,4591.1,4591.0,0.001]
[1756292371920,14.00610376,4591.1,4591.0,0.001]
[1756292372116,14.43510376,4591.1,4591.0,0.001]
[1756292374609,20.64269369,4591.1,4591.0,0.001]
[1756292375048,20.30182716,4591.1,4591.0,0.001]
[1756292378345,20.64274122,4591.1,4591.0,0.001]
[1756292379953,5.83831703,4590.7,4590.5,0.001]
[1756292380114,6.65,4590.6,4590.5,0.001]
[1756292380321,8.93716448,4590.6,4590.5,0.001]
[1756292380545,9.02452648,4590.6,4590.5,0.001]
[1756292380850,9.36543973,4590.6,4590.5,0.001]
[1756292381260,9.68123973,4590.6,4590.5,0.001]
[1756292381753,9.36543973,4590.6,4590.5,0.001]
[1756292383051,9.36463973,4590.6,4590.5,0.3027]
[1756292383224,9.36463973,4590.6,4590.5,0.7568]
[1756292383827,16.25994972,4590.6,4590.5,0.7568]
[1756292384954,12.26983647,4590.6,4590.5,0.7568]
[1756292385158,7.09147199,4590.6,4590.5,0.7568]
[1756292385319,9.18247447,4590.6,4590.5,0.7568]
[1756292385525,12.18247447,4590.6,4590.5,0.7568]
[1756292389363,12.83759147,4590.6,4590.5,0.7568]
[1756292391963,12.83959147,4590.6,4590.5,0.7568]
[1756292393165,12.83959147,4590.6,4590.5,0.001]
[1756292393365,12.83959147,4590.6,4590.5,0.3031]
[1756292393666,12.83959147,4590.6,4590.5,0.7604]
[1756292393870,16.48859147,4590.6,4590.5,0.7604]
[1756292394067,12.83959147,4590.6,4590.5,0.7604]
[1756292401148,12.83959147,4590.6,4590.5,0.3031]
[1756292402655,14.30922699,4590.6,4590.5,0.7604]
[1756292403687,10.66122699,4590.6,4590.5,0.7604]
[1756292403888,0.002,4590.6,4590.5,0.7604]
[1756292404272,0.002,4591.1,4590.5,0.7604]
[1756292404478,0.002,4591.1,4590.6,0.90912]
[1756292404887,0.002,4591.1,4591.0,0.3021]
[1756292405599,0.002,4591.1,4591.0,0.7594]
[1756292407397,0.0012,4591.1,4591.0,0.7594]
[1756292410399,0.0012,4591.1,4591.0,3.8682]
[1756292410603,0.0012,4591.1,4591.0,4.44440174]
[1756292410759,0.0012,4591.1,4591.0,4.42262]
[1756292411893,0.0012,4591.1,4591.0,8.06962]
[1756292415718,0.0012,4591.1,4591.0,4.42262]
[1756292416018,0.0012,4591.1,4591.0,5.06962]
[1756292419137,0.0012,4591.1,4591.0,1.42262]
[1756292419337,0.0012,4591.1,4591.0,4.5142]
[1756292425246,0.0012,4591.1,4591.0,0.8682]
[1756292425420,0.0012,4591.1,4591.0,4.5142]
[1756292431234,0.0012,4591.1,4591.0,4.0569]
[1756292431545,0.0012,4591.1,4591.0,4.5014]
[1756292431769,0.0012,4591.1,4591.0,5.13567948]
[1756292431958,0.0004,4591.1,4591.0,5.13567948]
[1756292441378,0.0004,4591.1,4591.0,4.69017948]
[1756292441679,0.0004,4591.1,4591.0,5.13467948]
[1756292442271,0.0004,4591.1,4591.0,4.69017948]
[1756292443658,0.0004,4591.1,4591.0,5.13467948]
[1756292443855,0.0004,4591.1,4591.0,8.79467948]
[1756292444196,0.002,4591.6,4591.2,0.66]
[1756292444344,0.002,4591.6,4591.4,3.66]
[1756292444549,0.002,4591.6,4591.5,7.7217]
[1756292445082,0.002,4591.6,4591.5,8.1662]
[1756292452488,0.002,4591.6,4591.5,13.4012]
[1756292452784,0.002,4591.6,4591.5,15.48662579]
[1756292453584,0.002,4591.6,4591.5,11.84262579]
[1756292453785,0.002,4591.6,4591.5,15.48562579]
[1756292456471,0.0012,4591.6,4591.5,15.48562579]
[1756292457876,0.0012,4591.6,4591.5,15.48462579]
[1756292460660,0.0012,4591.6,4591.5,14.07122579]
[1756292460860,0.7441,4591.6,4591.5,11.07122579]
[1756292461083,0.7441,4591.6,4591.5,8.9858]
[1756292461289,0.7441,4591.6,4591.5,9.6458]
[1756292461490,0.7441,4591.6,4591.5,5.3438]
[1756292461688,0.7441,4591.6,4591.5,11.9858]
[1756292461892,0.7441,4591.6,4591.5,8.9858]
[1756292462206,0.7441,4591.6,4591.5,12.86949256]
[1756292463070,0.296,4591.6,4591.5,12.86949256]
[1756292463271,0.0012,4591.6,4591.5,13.82159256]
[1756292463472,0.0012,4591.6,4591.5,14.29279256]
[1756292463801,0.296,4591.6,4591.5,13.52949256]
[1756292464174,0.0012,4591.6,4591.5,13.52949256]
[1756292464378,0.0012,4591.6,4591.5,14.29279256]
[1756292466799,0.0012,4591.6,4591.5,9.88749256]
[1756292467005,0.0012,4591.6,4591.5,13.52949256]
[1756292467180,0.0012,4591.6,4591.5,9.88749256]
[1756292467381,0.0012,4591.6,4591.5,13.52849256]
[1756292468186,0.0012,4591.6,4591.5,14.29179256]
[1756292468513,0.0012,4591.6,4591.5,13.82059256]
[1756292469590,0.296,4591.6,4591.5,9.88749256]
[1756292469790,0.296,4591.6,4591.5,13.52849256]
[1756292471298,0.0012,4591.6,4591.5,13.82059256]
[1756292471715,0.0012,4591.6,4591.5,14.29179256]
[1756292477426,0.0012,4591.6,4591.5,10.65079256]
[1756292477608,0.0012,4591.6,4591.5,14.29179256]
[1756292479532,0.0012,4591.6,4591.5,13.82059256]
[1756292480204,0.293,4591.6,4591.5,13.52849256]
[1756292480408,0.7424,4591.6,4591.5,6.22749256]
[1756292480598,0.7424,4591.6,4591.5,5.3438]
[1756292480804,0.7416,4591.6,4591.5,3.7498]
[1756292482643,0.7416,4591.6,4591.5,4.40453]
[1756292486343,0.7416,4591.6,4591.5,0.76353]
[1756292486514,0.7416,4591.6,4591.5,4.40353]
[1756292487340,0.7416,4591.6,4591.5,0.76353]
[1756292487552,0.7416,4591.6,4591.5,4.40353]
[1756292488966,0.2922,4591.6,4591.5,4.40353]
[1756292489166,0.7416,4591.6,4591.5,4.40353]
[1756292489470,0.7416,4591.6,4591.5,3.7488]
[1756292489641,0.7416,4591.6,4591.5,0.1088]
[1756292489966,0.7416,4591.6,4591.5,3.7488]
[1756292491154,0.2922,4591.6,4591.5,3.7488]
[1756292491552,0.2922,4591.6,4591.5,3.64]
[1756292491756,0.7416,4591.6,4591.5,3.7488]
[1756292492346,0.2922,4591.6,4591.5,3.7488]
[1756292492983,0.0004,4591.6,4591.5,3.7488]
[1756292493969,0.2922,4591.6,4591.5,3.7488]
[1756292494282,0.2922,4591.6,4591.5,3.7498]
[1756292494782,0.2922,4591.6,4591.5,3.837102]
[1756292496279,0.2922,4591.6,4591.5,3.85888137]
[1756292496779,0.0004,4591.6,4591.5,5.06478951]
[1756292497080,0.0004,4591.6,4591.5,8.70301014]
[1756292505396,0.0216,4591.8,4591.6,0.66]
[1756292505599,0.2918,4591.6,4591.5,0.197102]
[1756292505807,0.7412,4591.6,4591.5,3.7498]
[1756292506170,0.7412,4591.6,4591.5,3.946902]
[1756292506668,0.7412,4591.6,4591.5,0.306902]
[1756292506864,0.7412,4591.6,4591.5,3.7498]
[1756292507385,0.7412,4591.6,4591.5,3.641]
[1756292507786,0.7412,4591.6,4591.5,0.001]
[1756292507999,0.85,4591.6,4591.5,3.641]
[1756292509301,0.85,4591.6,4591.5,0.001]
[1756292509615,0.4006,4591.6,4591.5,3.641]
[1756292510100,0.0216,4591.8,4591.5,4.0642]
[1756292510311,0.0216,4591.8,4591.6,0.0217789]
[1756292510470,0.3057,4591.6,4591.5,4.2012]
[1756292511702,0.0216,4591.8,4591.5,5.37392]
[1756292512006,0.0216,4591.8,4591.5,4.93572]
[1756292512302,0.3057,4591.6,4591.5,0.5612]
[1756292512500,0.0216,4591.8,4591.5,4.2012]
[1756292514907,0.0216,4591.8,4591.7,0.3144]
[1756292515607,0.0216,4591.8,4591.7,0.33617842]
[1756292516291,0.3273,4591.8,4591.5,4.2012]
[1756292516484,0.3273,4591.8,4591.5,0.98132]
[1756292516689,0.3273,4591.8,4591.6,3.64]
[1756292517610,0.3273,4591.8,4591.6,4.0841]
[1756292518922,0.0216,4591.8,4591.7,0.77437842]
[1756292519079,0.0216,4591.8,4591.7,3.7526]
[1756292519285,0.0216,4591.8,4591.7,4.1967]
[1756292519583,0.0216,4591.8,4591.7,4.99135]
[1756292520123,0.0216,4591.8,4591.7,5.65135]
[1756292520292,0.0216,4591.8,4591.7,9.29035]
[1756292525084,0.0216,4591.8,4591.7,5.65135]
[1756292525285,0.0216,4591.8,4591.7,9.29035]
[1756292525937,0.0216,4591.8,4591.7,9.39915]
[1756292526297,0.0216,4591.8,4591.7,5.76015]
[1756292526624,0.0216,4591.8,4591.7,9.39915]
[1756292528506,0.0216,4591.8,4591.7,5.76015]
[1756292528731,0.0216,4591.8,4591.7,9.39915]
[1756292529737,0.0208,4591.8,4591.7,9.39915]
[1756292530716,0.0208,4591.8,4591.7,2.32195]
[1756292530923,0.0208,4591.8,4591.7,8.96095]
[1756292532130,0.0208,4591.8,4591.7,5.32195]
[1756292532440,0.0208,4591.8,4591.7,8.95995]
[1756292536131,0.0208,4591.8,4591.7,5.32195]
[1756292536331,0.0208,4591.8,4591.7,8.95995]
[1756292536863,0.0208,4591.8,4591.7,9.39815]
[1756292538951,0.0208,4591.8,4591.7,5.76015]
[1756292539130,0.0208,4591.8,4591.7,9.39815]
[1756292541554,0.0208,4591.8,4591.7,8.95995]
[1756292542470,0.0208,4591.8,4591.7,5.00755]
[1756292542769,0.3162,4591.8,4591.7,8.64555]
[1756292543133,0.0208,4591.8,4591.7,8.64555]
[1756292544771,0.0208,4591.8,4591.7,5.00755]
[1756292544963,0.0208,4591.8,4591.7,8.64555]
[1756292545656,0.3162,4591.8,4591.7,8.64555]
[1756292546377,0.3162,4591.8,4591.7,5.00755]
[1756292546580,0.3162,4591.8,4591.7,8.64555]
[1756292546971,0.0208,4591.8,4591.7,8.64555]
[1756292548483,0.0208,4591.8,4591.7,8.93925]
[1756292548894,0.0208,4591.8,4591.7,8.64555]
[1756292550959,0.0208,4591.8,4591.7,8.93925]
[1756292551160,0.0208,4591.8,4591.7,9.29805]
[1756292551492,0.0208,4591.8,4591.7,9.40685]
[1756292554202,0.02,4591.8,4591.7,9.40685]
[1756292556101,0.02,4591.8,4591.7,8.93825]
[1756292556370,0.02,4591.8,4591.7,9.40585]
[1756292558465,0.002,4591.9,4591.8,3.66]
[1756292558667,0.002,4591.9,4591.8,7.40106602]
[1756292558867,0.002,4591.9,4591.8,7.67298807]
[1756292559104,0.002,4592.1,4591.8,9.96998807]
[1756292559312,0.002,4592.1,4592.0,6.0658]
[1756292559601,0.002,4592.1,4592.0,3.7688]
[1756292559802,0.002,4592.1,4592.0,6.02530531]
[1756292560008,0.002,4592.1,4592.0,6.09078731]
[1756292560788,0.002,4592.1,4592.0,8.38778731]
[1756292561709,0.002,4592.1,4592.0,12.02478731]
[1756292563827,0.002,4592.3,4592.0,12.02478731]
[1756292564002,0.002,4592.3,4592.2,9.86758993]
[1756292564208,0.002,4592.3,4592.2,13.50458993]
[1756292564511,0.002,4592.3,4592.2,14.35314493]
[1756292567838,0.002,4593.1,4592.3,5.957]
[1756292568003,0.002,4593.1,4592.3,6.4246]
[1756292568196,0.002,4593.1,4592.3,12.28107925]
[1756292568407,0.002,4593.1,4592.4,0.66]
[1756292568609,0.002,4593.1,4592.5,7.31777463]
[1756292568811,0.002,4593.1,4592.5,7.296]
[1756292569017,0.002,4593.1,4592.5,8.0573]
[1756292569308,0.002,4593.1,4592.5,10.02278392]
[1756292569508,0.002,4593.1,4592.5,12.31978392]
[1756292571223,0.002,4593.1,4592.7,9.16458993]
[1756292571424,0.002,4593.1,4592.7,17.47458993]
[1756292571738,0.002,4593.1,4592.8,5.957]
[1756292571944,0.002,4593.1,4593.0,3.7688]
[1756292572106,0.002,4593.1,4593.0,4.08]
[1756292572306,0.002,4593.1,4593.0,4.5508]
[1756292572710,0.002,4593.1,4593.0,6.8478]
[1756292572907,0.002,4593.7,4593.6,9.86758993]
[1756292573132,0.002,4593.7,4593.6,21.39634892]
[1756292573440,0.002,4593.7,4593.6,22.28714892]
[1756292573629,0.002,4593.7,4593.6,21.81634892]
[1756292573819,0.002,4593.7,4593.6,21.50514892]
[1756292574020,0.2812,4593.7,4593.6,17.86914892]
[1756292574251,0.2812,4593.7,4593.6,11.66155899]
[1756292574452,0.2812,4593.7,4593.6,15.29655899]
[1756292574951,0.7495,4593.7,4593.6,0.1088]
[1756292575113,0.7495,4593.7,4593.6,1.7828]
[1756292575314,0.7495,4593.7,4593.6,5.4178]
[1756292578752,0.7487,4593.7,4593.6,5.4178]
[1756292579652,0.7487,4593.7,4593.6,6.07229]
[1756292579847,0.7487,4593.7,4593.6,2.43729]
[1756292580047,0.7487,4593.7,4593.6,6.07229]
[1756292581354,0.2804,4593.7,4593.6,6.07229]
[1756292581544,0.7487,4593.7,4593.6,6.07229]
[1756292584243,0.2804,4593.7,4593.6,6.07229]
[1756292584954,0.0012,4593.7,4593.6,10.66730434]
[1756292586260,0.0012,4593.7,4593.6,11.13810434]
[1756292597947,0.02,4593.8,4593.7,3.66]
[1756292598171,0.002,4594.2,4594.1,9.86758993]
[1756292598358,0.002,4594.2,4594.1,13.81278993]
[1756292598544,0.002,4594.2,4594.1,15.34994892]
[1756292598868,0.002,4594.2,4594.1,15.90797092]
[1756292599633,0.02,4594.8,4594.2,3.66]
[1756292599866,0.02,4594.8,4594.6,9.97638993]
[1756292600073,0.02,4594.8,4594.6,22.17860553]
[1756292600272,0.02,4594.8,4594.6,22.95620553]
[1756292600735,0.02,4594.8,4594.6,23.04341753]
[1756292601354,0.02,4594.8,4594.6,25.33841753]
[1756292603301,0.0012,4594.7,4594.6,25.33841753]
[1756292603790,0.0012,4594.7,4594.6,24.87071753]
[1756292603999,0.2947,4594.7,4594.6,16.0582276]
[1756292605196,0.2947,4594.7,4594.6,12.3982276]
[1756292605361,0.7243,4594.7,4594.6,12.3982276]
[1756292605552,0.2947,4594.7,4594.6,15.3982276]
[1756292605752,0.2947,4594.7,4594.6,16.0582276]
[1756292606798,0.0012,4594.7,4594.6,16.0582276]
[1756292608790,0.2947,4594.7,4594.6,16.0582276]
[1756292609757,0.2947,4594.7,4594.6,12.4242276]
[1756292609963,0.2947,4594.7,4594.6,16.0582276]
[1756292610794,0.0012,4594.7,4594.6,16.0582276]
[1756292611294,0.2947,4594.7,4594.6,16.0582276]
[1756292611995,0.0012,4594.7,4594.6,16.0582276]
[1756292612490,0.0012,4594.7,4594.6,16.3681276]
[1756292613062,0.0012,4594.7,4594.6,13.2018276]
[1756292613262,0.0012,4594.7,4594.6,16.8348276]
[1756292613675,0.0012,4594.7,4594.6,16.3671276]
[1756292615014,0.0012,4594.7,4594.6,16.0572276]
[1756292615215,0.2947,4594.7,4594.6,16.0572276]
[1756292616017,0.0012,4594.7,4594.6,16.3671276]
[1756292616196,0.0012,4594.7,4594.6,16.8348276]
[1756292616721,0.0012,4594.7,4594.6,16.0572276]
[1756292617484,0.0012,4594.7,4594.6,16.3671276]
[1756292617717,0.0012,4594.7,4594.6,16.8348276]
[1756292619008,0.02,4594.8,4594.7,5.955]
[1756292619208,0.02,4594.8,4594.7,8.6743437]
[1756292619488,0.002,4595.2,4594.7,8.9842437]
[1756292619824,0.002,4595.2,4595.1,9.86758993]
[1756292620018,0.002,4595.2,4595.1,13.50058993]
[1756292620221,0.002,4595.7,4595.2,5.955]
[1756292620409,0.002,4595.7,4595.6,9.97638993]
[1756292620720,0.002,4595.7,4595.6,15.59228993]
[1756292621118,0.002,4595.7,4595.6,16.48958993]
[1756292622720,0.002,4595.7,4595.6,16.38078993]
[1756292627332,0.02,4595.8,4595.7,3.66]
[1756292627539,0.02,4595.8,4595.7,5.31983846]
[1756292627834,0.02,4596.8,4595.7,6.23774722]
[1756292628006,0.02,4596.8,4596.7,0.66]
[1756292628213,0.02,4596.8,4596.7,14.21575473]
[1756292628414,0.3135,4596.8,4596.7,16.23633447]
[1756292628622,0.02,4596.8,4596.7,16.66593447]
[1756292628816,0.02,4596.8,4596.7,16.97583447]
[1756292629610,0.02,4596.8,4596.7,17.44353447]
[1756292629810,0.02,4596.8,4596.7,17.55493224]
[1756292630117,0.02,4596.8,4596.7,16.77733224]
[1756292630806,0.02,4596.8,4596.7,16.66593447]
[1756292631462,0.02,4596.8,4596.7,13.03393447]
[1756292631611,0.02,4596.8,4596.7,16.66593447]
[1756292632543,0.02,4596.8,4596.7,16.77473447]
[1756292636711,0.022,4596.8,4596.7,16.77473447]
[1756292638137,0.022,4596.8,4596.7,13.14273447]
[1756292638339,0.022,4596.8,4596.7,16.77473447]
[1756292639865,0.3096,4596.8,4596.7,16.77473447]
[1756292640763,0.022,4596.8,4596.7,16.77473447]
[1756292640930,0.022,4596.8,4596.7,17.08183447]
[1756292641625,0.022,4596.8,4596.7,16.77473447]
[1756292642830,0.3096,4596.8,4596.7,16.77473447]
[1756292643033,0.3096,4596.8,4596.7,16.77373447]
[1756292643225,0.3096,4596.8,4596.7,12.48273447]
[1756292643434,0.002,4597.3,4596.8,1.90827345]
[1756292643639,0.002,4597.3,4597.2,0.66]
[1756292643839,0.002,4597.3,4597.2,4.74365237]
[1756292644041,0.002,4597.3,4597.2,6.66463987]
[1756292644241,0.002,4597.3,4597.2,7.12633987]
[1756292645150,0.002,4597.3,4597.2,10.12633987]
[1756292645351,0.002,4597.3,4597.2,10.23831753]
[1756292647879,0.0212,4597.8,4597.3,3.66]
[1756292648052,0.0212,4597.8,4597.7,9.97638993]
[1756292648376,0.0212,4597.8,4597.7,15.29838993]
[1756292648573,0.0212,4597.8,4597.7,16.18728993]
[1756292650477,0.0212,4597.8,4597.7,15.71428993]
[1756292650851,0.0212,4597.8,4597.7,16.18728993]
[1756292651047,0.0212,4597.8,4597.7,17.9450021]
[1756292651251,0.0212,4597.8,4597.7,17.4720021]
[1756292651977,0.3088,4597.8,4597.7,13.5149021]
[1756292652175,0.308,4597.8,4597.7,17.1639021]
[1756292652667,0.0204,4597.8,4597.7,17.1639021]
[1756292653281,0.0204,4597.8,4597.7,13.8220021]
[1756292653502,0.308,4597.8,4597.7,13.5149021]
[1756292653669,0.308,4597.8,4597.7,17.1629021]
[1756292654072,0.0204,4597.8,4597.7,17.4700021]
[1756292654270,0.0204,4597.8,4597.7,17.9430021]
[1756292654994,0.3249,4597.8,4597.7,17.1629021]
[1756292655370,0.0204,4597.8,4597.7,17.1629021]
[1756292655688,0.0204,4597.8,4597.7,17.4700021]
[1756292655896,0.0204,4597.8,4597.7,17.9430021]
[1756292659386,0.0204,4597.8,4597.7,17.4700021]
[1756292659709,0.0204,4597.8,4597.7,13.5149021]
[1756292659880,0.308,4597.8,4597.7,17.1609021]
[1756292660580,0.308,4597.8,4597.7,17.1599021]
[1756292661621,0.0204,4597.8,4597.7,17.8760021]
[1756292662204,0.0204,4597.8,4597.7,17.4466021]
[1756292665992,0.0204,4597.8,4597.7,17.1599021]
[1756292666718,0.0204,4597.8,4597.7,13.5149021]
[1756292667022,0.759,4597.8,4597.7,10.28931217]
[1756292667215,0.759,4597.8,4597.7,9.1916]
[1756292667409,0.3289,4597.8,4597.7,9.1916]
[1756292668128,0.3289,4597.8,4597.7,15.39918993]
[1756292668822,0.3289,4597.8,4597.7,11.75718993]
[1756292669029,0.3289,4597.8,4597.7,15.39918993]
[1756292669324,0.3289,4597.8,4597.7,16.93910892]
[1756292672315,0.3289,4597.8,4597.7,7.08951899]
[1756292672628,0.759,4597.8,4597.7,5.5306]
[1756292673124,0.759,4597.8,4597.7,9.1906]
[1756292673532,0.3289,4597.8,4597.7,9.1906]
[1756292673711,0.3289,4597.8,4597.7,10.10976]
[1756292673910,0.759,4597.8,4597.7,10.10976]
[1756292674219,0.3289,4597.8,4597.7,10.10976]
[1756292674996,0.759,4597.8,4597.7,10.10976]
[1756292676345,0.3289,4597.8,4597.7,10.10976]
[1756292676642,0.3281,4597.8,4597.7,10.10976]
[1756292677237,0.0196,4597.8,4597.7,10.10976]
[1756292677626,0.3281,4597.8,4597.7,10.10976]
[1756292678138,0.7582,4597.8,4597.7,9.1906]
[1756292678337,0.0196,4597.8,4597.7,9.1906]
[1756292679447,0.0196,4597.8,4597.7,9.4773]
[1756292680238,0.0196,4597.8,4597.7,9.9067]
[1756292682514,0.04,4598.8,4597.8,3.66]
[1756292682719,0.04,4598.8,4598.7,9.97638993]
[1756292682949,0.04,4598.8,4598.7,20.80408993]
[1756292683143,0.04,4598.8,4598.7,18.24405393]
[1756292683347,0.3485,4598.8,4598.7,21.17095393]
[1756292684355,0.04,4598.8,4598.7,21.17095393]
[1756292684557,0.3485,4598.8,4598.7,19.64504932]
[1756292684755,0.3485,4598.8,4598.7,23.28804932]
[1756292685457,0.04,4598.8,4598.7,23.28804932]
[1756292685752,0.04,4598.8,4598.7,23.28704932]
[1756292687454,0.04,4598.8,4598.7,24.00314932]
[1756292688156,0.4501,4600.8,4598.8,3.66]
[1756292688456,0.02,4600.8,4600.7,0.1088]
[1756292688674,0.3285,4600.8,4600.7,5.4228]
[1756292689047,0.7586,4600.8,4600.7,6.0848]
[1756292689559,0.3285,4600.8,4600.7,6.0848]
[1756292689766,0.7586,4600.8,4600.7,6.0848]
[1756292690647,0.3285,4600.8,4600.7,5.976]
[1756292690847,0.7678,4600.8,4600.7,6.0848]
[1756292691244,0.3285,4600.8,4600.7,6.0848]
[1756292691853,0.7678,4600.8,4600.7,6.0848]
[1756292692365,0.3305,4600.8,4600.7,6.0848]
[1756292692844,0.3305,4600.8,4600.7,6.24799365]
[1756292693446,0.3305,4600.8,4600.7,2.60499365]
[1756292693647,0.3305,4600.8,4600.7,6.24799365]
[1756292694144,0.3305,4600.8,4600.7,12.13064301]
[1756292694490,0.022,4600.8,4600.7,12.43284301]
[1756292694986,0.3306,4600.8,4600.7,12.13064301]
[1756292695189,0.022,4600.8,4600.7,12.13064301]
[1756292696250,0.3117,4600.8,4600.7,1.83619365]
[1756292696672,0.3117,4600.8,4600.7,5.68419365]
[1756292697452,0.022,4600.8,4600.7,5.68419365]
[1756292697683,0.022,4600.8,4600.7,5.98639365]
[1756292698251,0.022,4600.8,4600.7,8.98639365]
[1756292698450,0.022,4600.8,4600.7,10.35979301]
[1756292698652,0.022,4600.8,4600.7,10.81939301]
[1756292701357,0.0212,4600.8,4600.7,10.81939301]
[1756292704356,0.0212,4600.8,4600.7,7.63139301]
[1756292704690,0.0212,4600.8,4600.7,11.28139301]
[1756292705965,0.0212,4600.8,4600.7,10.84979301]
[1756292706170,0.0212,4600.8,4600.7,11.28139301]
[1756292706370,0.0212,4600.8,4600.7,11.39019301]
[1756292706861,0.0212,4600.8,4600.7,7.74019301]
[1756292707061,0.0212,4600.8,4600.7,11.39019301]
[1756292707298,0.3109,4600.8,4600.7,7.00639301]
[1756292707498,0.3109,4600.8,4600.7,10.65639301]
[1756292708658,0.7688,4600.8,4600.7,3.34639301]
[1756292708990,0.7688,4600.8,4600.7,5.59499365]
[1756292710561,0.7688,4600.8,4600.7,1.94499365]
[1756292710791,0.7688,4600.8,4600.7,5.59499365]
[1756292711167,0.7688,4600.8,4600.7,1.94499365]
[1756292711369,0.7688,4600.8,4600.7,5.59499365]
[1756292711901,0.7688,4600.8,4600.7,1.7808]
[1756292712198,0.7688,4600.8,4600.7,5.4308]
[1756292714421,0.7688,4600.8,4600.7,5.4298]
[1756292714615,0.7688,4600.8,4600.7,1.7808]
[1756292714818,0.7688,4600.8,4600.7,5.321]
[1756292716185,0.7688,4600.8,4600.7,1.672]
[1756292716386,0.7688,4600.8,4600.7,5.321]
[1756292717399,0.7688,4600.8,4600.7,1.672]
[1756292717598,0.7688,4600.8,4600.7,4.723]
[1756292719230,0.7688,4600.8,4600.7,1.672]
[1756292719418,0.7688,4600.8,4600.7,5.32]
[1756292720137,0.7688,4600.8,4600.7,1.672]
[1756292720636,0.7688,4600.8,4600.7,3.054]
[1756292721641,0.7688,4600.8,4600.7,3.649]
[1756292723807,0.7688,4600.8,4600.6,3.65]
[1756292724013,0.551,4600.7,4600.6,0.001]
[1756292724543,1.511636,4600.7,4600.6,0.001]
[1756292725546,11.511636,4600.7,4600.6,0.001]
[1756292725723,11.510836,4600.7,4600.6,0.001]
[1756292728869,12.170836,4600.7,4600.6,0.001]
[1756292729079,3.66,4600.6,4600.2,0.001]
[1756292729237,9.20758993,4600.3,4600.2,0.001]
[1756292729438,9.52028993,4600.3,4600.2,0.001]
[1756292729650,9.95368993,4600.3,4600.2,0.001]
[1756292729867,10.71632593,4600.3,4600.2,0.001]
[1756292730054,17.71632593,4600.3,4600.2,0.001]
[1756292733569,18.37632593,4600.3,4600.2,0.001]
[1756292734877,3.66,4600.2,4599.6,0.001]
[1756292735045,0.1088,4599.9,4599.6,0.001]
[1756292735247,0.4215,4599.9,4599.6,0.001]
[1756292735469,0.8549,4599.9,4599.6,0.001]
[1756292736288,1.508779,4599.9,4599.6,0.001]
[1756292736486,11.508779,4599.9,4599.6,0.001]
[1756292737650,11.075379,4599.9,4599.6,0.001]
[1756292738097,0.653879,4599.9,4599.8,0.3261]
[1756292738267,0.1088,4599.9,4599.8,0.7782]
[1756292739794,0.653712,4600.4,4599.8,0.7782]
[1756292739968,0.1088,4600.1,4599.9,3.649]
[1756292740156,0.1088,4600.1,4600.0,0.7582]
[1756292746083,0.1088,4600.1,4600.0,0.3061]
[1756292746306,0.414,4600.1,4600.0,3.647]
[1756292746602,0.414,4600.1,4599.8,0.02]
[1756292746973,0.414,4600.1,4599.9,3.646]
[1756292747172,0.8549,4600.1,4599.9,3.646]
[1756292747470,0.5609,4600.1,4600.0,0.3061]
[1756292747666,0.1088,4600.1,4600.0,0.7582]
[1756292748476,0.1088,4600.1,4600.0,0.3061]
[1756292748678,0.1088,4600.1,4600.0,3.647]
[1756292749316,0.1088,4600.1,4599.8,0.02]
[1756292749703,0.1088,4600.1,4599.9,3.081]
[1756292750010,0.1088,4600.1,4600.0,0.29]
[1756292750186,0.108,4600.1,4600.0,0.29]
[1756292750386,0.4021,4600.1,4599.8,0.02]
[1756292750590,6.20758993,4600.0,4599.8,3.667]
[1756292750797,0.2957,4599.9,4599.8,3.667]
[1756292751223,0.108,4600.1,4599.9,0.29]
[1756292751593,0.108,4600.1,4599.9,3.937]
[1756292751994,0.108,4600.1,4600.0,3.646]
[1756292753131,0.108,4600.1,4599.8,0.02]
[1756292753327,0.4021,4600.1,4600.0,3.646]
[1756292753530,7.4021,4600.1,4600.0,3.646]
[1756292754399,7.4021,4600.1,4599.8,0.02]
[1756292754596,16.65938993,4600.0,4599.8,0.02]
[1756292755139,0.746,4599.9,4599.8,0.02]
[1756292756846,1.399883,4599.9,4599.8,0.02]
[1756292757023,0.762683,4599.9,4599.8,0.31]
[1756292757226,0.653883,4599.9,4599.8,0.31]
[1756292757435,0.1088,4599.9,4599.8,0.7438]
[1756292758098,7.0,4600.0,4599.8,0.7438]
[1756292758299,7.0,4600.0,4599.9,3.65]
[1756292758496,7.0,4600.0,4599.9,4.3738]
[1756292759808,7.1088,4600.1,4599.9,4.3738]
[1756292760011,0.1088,4600.1,4600.0,0.87318]
[1756292760206,0.1088,4600.1,4600.0,4.3798]
[1756292760508,0.13,4600.8,4600.0,4.4886]
[1756292760825,0.13,4600.8,4600.1,2.1058]
[1756292761228,0.13,4600.8,4600.7,0.29]
[1756292761407,0.13,4600.8,4600.7,3.945]
[1756292762307,0.13,4600.8,4600.7,4.3788]
[1756292763252,0.0212,4600.8,4600.7,4.3788]
[1756292764957,0.0212,4600.8,4600.7,4.82756]